[Event "*** Titled Tuesday Blitz"]
[Site "Chess.com"]
[Date "2021.02.09"]
[Round "1"]
[White "12teen"]
[Black "AsaHoffmann"]
[Result "1-0"]
[WhiteElo "2810"]
[BlackElo "2408"]
[TimeControl "180+1"]
[EndTime "10:05:06 PST"]
[Termination "12teen won by resignation"]

1. g3 {[%clk 0:02:58.6]} 1... d6 {[%clk 0:02:57.6]} 2. Bg2 {[%clk 0:02:59.5]}
2... e5 {[%clk 0:02:56.3]} 3. d3 {[%clk 0:02:59]} 3... Nf6 {[%clk 0:02:54.4]} 4.
Nc3 {[%clk 0:02:59.6]} 4... c6 {[%clk 0:02:54.1]} 5. e4 {[%clk 0:03:00.1]} 5...
Be7 {[%clk 0:02:52.9]} 6. f4 {[%clk 0:03:00.5]} 6... h5 {[%clk 0:02:50.2]} 7. h3
{[%clk 0:02:59.9]} 7... b5 {[%clk 0:02:48.1]} 8. Nf3 {[%clk 0:02:59.5]} 8...
Nbd7 {[%clk 0:02:44.8]} 9. Be3 {[%clk 0:02:55.9]} 9... a6 {[%clk 0:02:41.2]} 10.
Qd2 {[%clk 0:02:55]} 10... Bb7 {[%clk 0:02:40.6]} 11. a3 {[%clk 0:02:52.6]}
11... Qc7 {[%clk 0:02:40.1]} 12. d4 {[%clk 0:02:48.9]} 12... c5 {[%clk
0:02:36.4]} 13. d5 {[%clk 0:02:45.3]} 13... c4 {[%clk 0:02:31.1]} 14. O-O {[%clk
0:02:36]} 14... Nc5 {[%clk 0:02:22]} 15. Nh4 {[%clk 0:02:26.4]} 15... Nfd7
{[%clk 0:02:17.5]} 16. Nf5 {[%clk 0:02:25.2]} 16... Bf8 {[%clk 0:02:16.4]} 17.
fxe5 {[%clk 0:02:06.3]} 17... Nxe5 {[%clk 0:02:11.3]} 18. Bg5 {[%clk 0:02:05.4]}
18... g6 {[%clk 0:02:02.4]} 19. Nd4 {[%clk 0:02:03.5]} 19... Bg7 {[%clk
0:02:00.6]} 20. Bf6 {[%clk 0:02:00.9]} 20... Bh6 {[%clk 0:01:55.1]} 21. Qe2
{[%clk 0:01:55]} 21... O-O {[%clk 0:01:45.6]} 22. Rf2 {[%clk 0:01:50.2]} 22...
Ncd7 {[%clk 0:01:40.7]} 23. Bh4 {[%clk 0:01:36.1]} 23... Qc5 {[%clk 0:01:35.9]}
24. Rd1 {[%clk 0:01:35.7]} 24... Rae8 {[%clk 0:01:30.4]} 25. Kh1 {[%clk
0:01:26.4]} 25... Bg7 {[%clk 0:01:24.4]} 26. Bg5 {[%clk 0:01:24.3]} 26... Ng4
{[%clk 0:01:19.6]} 27. hxg4 {[%clk 0:01:18.8]} 27... Bxd4 {[%clk 0:01:18.8]} 28.
Rff1 {[%clk 0:01:15.7]} 28... hxg4 {[%clk 0:01:17.3]} 29. Qxg4 {[%clk
0:01:14.8]} 29... Ne5 {[%clk 0:01:17.1]} 30. Qh4 {[%clk 0:01:12.6]} 30... Bc8
{[%clk 0:01:09.6]} 31. Bf6 {[%clk 0:01:07.3]} 1-0

[Event "*** Titled Tuesday Blitz"]
[Site "Chess.com"]
[Date "2021.02.09"]
[Round "1"]
[White "ChessWarrior3"]
[Black "Enriquack"]
[Result "0-1"]
[WhiteElo "2110"]
[BlackElo "2496"]
[TimeControl "180+1"]
[EndTime "10:05:09 PST"]
[Termination "Enriquack won by resignation"]

1. e4 {[%clk 0:02:59.9]} 1... c5 {[%clk 0:02:59.6]} 2. Nf3 {[%clk 0:02:58.3]}
2... e6 {[%clk 0:02:59.9]} 3. d4 {[%clk 0:02:56.2]} 3... cxd4 {[%clk 0:03:00.8]}
4. Nxd4 {[%clk 0:02:56.3]} 4... Nc6 {[%clk 0:03:01]} 5. Nb5 {[%clk 0:02:55.2]}
5... Nf6 {[%clk 0:02:58.7]} 6. N1c3 {[%clk 0:02:49.6]} 6... d6 {[%clk
0:02:58.2]} 7. Bf4 {[%clk 0:02:49]} 7... e5 {[%clk 0:02:58.3]} 8. Bg5 {[%clk
0:02:49.1]} 8... a6 {[%clk 0:02:58.8]} 9. Na3 {[%clk 0:02:48.3]} 9... b5 {[%clk
0:02:58.1]} 10. Bxf6 {[%clk 0:02:48.7]} 10... gxf6 {[%clk 0:02:57.9]} 11. Nd5
{[%clk 0:02:49.3]} 11... Bg7 {[%clk 0:02:57.1]} 12. Bd3 {[%clk 0:02:49.4]} 12...
Ne7 {[%clk 0:02:57.5]} 13. Ne3 {[%clk 0:02:44.5]} 13... d5 {[%clk 0:02:43]} 14.
exd5 {[%clk 0:02:38]} 14... f5 {[%clk 0:02:40.5]} 15. f3 {[%clk 0:02:33.2]}
15... O-O {[%clk 0:02:36.8]} 16. c4 {[%clk 0:02:29.4]} 16... e4 {[%clk
0:02:23.2]} 17. fxe4 {[%clk 0:02:26.9]} 17... fxe4 {[%clk 0:02:23.4]} 18. Bxe4
{[%clk 0:02:27.8]} 18... Bxb2 {[%clk 0:02:22.9]} 19. Qh5 {[%clk 0:02:13.6]}
19... Ng6 {[%clk 0:02:22.2]} 20. Rb1 {[%clk 0:01:46.3]} 20... Bxa3 {[%clk
0:02:05]} 21. Ng4 {[%clk 0:01:30.6]} 21... Bxg4 {[%clk 0:01:55.5]} 22. Qxg4
{[%clk 0:01:31.5]} 22... f5 {[%clk 0:01:55.4]} 23. Bxf5 {[%clk 0:01:29.7]} 23...
Rxf5 {[%clk 0:01:43.7]} 24. Qxf5 {[%clk 0:01:25.8]} 24... Qh4+ {[%clk
0:01:43.9]} 25. g3 {[%clk 0:01:22.4]} 25... Re8+ {[%clk 0:01:41.8]} 26. Kf2
{[%clk 0:01:14.8]} 26... Bc5+ {[%clk 0:01:34]} 27. Kg2 {[%clk 0:01:04.4]} 27...
Re2+ {[%clk 0:01:31.3]} 28. Kf1 {[%clk 0:00:59.8]} 28... Qxc4 {[%clk 0:01:26.5]}
29. Qc8+ {[%clk 0:00:45.9]} 29... Re8+ {[%clk 0:01:23.5]} 0-1

[Event "*** Titled Tuesday Blitz"]
[Site "Chess.com"]
[Date "2021.02.09"]
[Round "1"]
[White "zim0ne"]
[Black "agartha01"]
[Result "0-1"]
[WhiteElo "2531"]
[BlackElo "2276"]
[TimeControl "180+1"]
[EndTime "10:05:17 PST"]
[Termination "agartha01 won by resignation"]

1. e4 {[%clk 0:03:00.2]} 1... c5 {[%clk 0:02:59.4]} 2. Nf3 {[%clk 0:03:00.4]}
2... e6 {[%clk 0:02:59.3]} 3. d4 {[%clk 0:03:00.4]} 3... cxd4 {[%clk 0:03:00.2]}
4. Nxd4 {[%clk 0:02:59.9]} 4... a6 {[%clk 0:03:00.2]} 5. Bd3 {[%clk 0:02:58.9]}
5... Nc6 {[%clk 0:02:59.1]} 6. Nb3 {[%clk 0:02:58.7]} 6... Nf6 {[%clk
0:02:57.9]} 7. O-O {[%clk 0:02:58.6]} 7... Be7 {[%clk 0:02:57.6]} 8. f4 {[%clk
0:02:58.9]} 8... d5 {[%clk 0:02:55.4]} 9. e5 {[%clk 0:02:58.7]} 9... Ne4 {[%clk
0:02:51.4]} 10. Qg4 {[%clk 0:02:58.6]} 10... Qb6+ {[%clk 0:02:50.3]} 11. Kh1
{[%clk 0:02:57.1]} 11... Nf2+ {[%clk 0:02:48.1]} 12. Rxf2 {[%clk 0:02:57.4]}
12... Qxf2 {[%clk 0:02:49]} 13. Bd2 {[%clk 0:02:52.4]} 13... Nb4 {[%clk
0:02:27.8]} 14. Qxg7 {[%clk 0:02:46.3]} 14... Rf8 {[%clk 0:02:17.8]} 15. Qxh7
{[%clk 0:02:44.3]} 15... Nxc2 {[%clk 0:02:12]} 16. Nc3 {[%clk 0:02:31.9]} 16...
Nxa1 {[%clk 0:02:12]} 17. Nd1 {[%clk 0:02:23.7]} 17... Qh4 {[%clk 0:01:50]} 18.
Qxh4 {[%clk 0:02:20.8]} 18... Bxh4 {[%clk 0:01:50.9]} 19. Nxa1 {[%clk
0:02:21.1]} 19... Bd7 {[%clk 0:01:48]} 20. g3 {[%clk 0:02:21.6]} 20... Be7
{[%clk 0:01:46.9]} 21. h4 {[%clk 0:02:21.9]} 21... Bb5 {[%clk 0:01:43.5]} 22.
Bc2 {[%clk 0:02:17.5]} 22... Kd7 {[%clk 0:01:42.7]} 23. a4 {[%clk 0:02:17]}
23... Be2 {[%clk 0:01:37.9]} 24. Nc3 {[%clk 0:02:17.1]} 24... Bf3+ {[%clk
0:01:37.1]} 25. Kh2 {[%clk 0:02:16.1]} 25... d4 {[%clk 0:01:26.9]} 26. Ne4
{[%clk 0:02:13.4]} 26... Rac8 {[%clk 0:01:07.6]} 27. Bd3 {[%clk 0:02:13.4]}
27... Bd1 {[%clk 0:01:06.7]} 28. a5 {[%clk 0:02:09.5]} 28... Ba4 {[%clk
0:00:57.2]} 29. h5 {[%clk 0:02:02.9]} 29... Bd1 {[%clk 0:00:46.8]} 30. h6 {[%clk
0:01:48.6]} 30... Rh8 {[%clk 0:00:46.4]} 31. f5 {[%clk 0:01:48.9]} 31... exf5
{[%clk 0:00:47.3]} 32. Nf6+ {[%clk 0:01:46.8]} 32... Ke6 {[%clk 0:00:36.4]} 33.
Nh5 {[%clk 0:01:46.7]} 33... Bxh5 {[%clk 0:00:34.6]} 0-1

[Event "*** Titled Tuesday Blitz"]
[Site "Chess.com"]
[Date "2021.02.09"]
[Round "1"]
[White "Chessmasterzt"]
[Black "Mbneu"]
[Result "1-0"]
[WhiteElo "2622"]
[BlackElo "2319"]
[TimeControl "180+1"]
[EndTime "10:05:24 PST"]
[Termination "Chessmasterzt won by resignation"]

1. d4 {[%clk 0:02:58.8]} 1... Nf6 {[%clk 0:02:59.1]} 2. c4 {[%clk 0:02:58.5]}
2... c5 {[%clk 0:02:59.7]} 3. e3 {[%clk 0:02:56.8]} 3... e6 {[%clk 0:02:57.2]}
4. Nf3 {[%clk 0:02:56.3]} 4... d5 {[%clk 0:02:56.9]} 5. cxd5 {[%clk 0:02:53]}
5... exd5 {[%clk 0:02:56.4]} 6. Bb5+ {[%clk 0:02:49.9]} 6... Bd7 {[%clk
0:02:54.3]} 7. Bxd7+ {[%clk 0:02:49.3]} 7... Nbxd7 {[%clk 0:02:52.5]} 8. dxc5
{[%clk 0:02:48.9]} 8... Nxc5 {[%clk 0:02:50.3]} 9. O-O {[%clk 0:02:49]} 9... Bd6
{[%clk 0:02:44.8]} 10. b3 {[%clk 0:02:48]} 10... O-O {[%clk 0:02:40]} 11. Bb2
{[%clk 0:02:48.5]} 11... Nce4 {[%clk 0:02:35.4]} 12. Nc3 {[%clk 0:02:47.2]}
12... Rc8 {[%clk 0:02:34.7]} 13. Rc1 {[%clk 0:02:46.6]} 13... Bb4 {[%clk
0:01:42.3]} 14. Ne2 {[%clk 0:02:29.2]} 14... Qa5 {[%clk 0:01:28.8]} 15. a4
{[%clk 0:02:20.2]} 15... Nc3 {[%clk 0:01:04.5]} 16. Bxc3 {[%clk 0:02:02.1]}
16... Bxc3 {[%clk 0:01:04.1]} 17. Qd3 {[%clk 0:02:02]} 17... Ne4 {[%clk
0:00:54.1]} 18. Nf4 {[%clk 0:01:51.8]} 18... Rfd8 {[%clk 0:00:40.5]} 19. Rfd1
{[%clk 0:01:49.1]} 19... Qb4 {[%clk 0:00:18.3]} 20. Nxd5 {[%clk 0:01:43.1]}
20... Nc5 {[%clk 0:00:05.9]} 21. Nxb4 {[%clk 0:01:33.8]} 21... Nxd3 {[%clk
0:00:05.5]} 22. Nxd3 {[%clk 0:01:32.7]} 1-0

[Event "*** Titled Tuesday Blitz"]
[Site "Chess.com"]
[Date "2021.02.09"]
[Round "1"]
[White "kekic76"]
[Black "BahadirOzen"]
[Result "0-1"]
[WhiteElo "2385"]
[BlackElo "2726"]
[TimeControl "180+1"]
[EndTime "10:05:25 PST"]
[Termination "BahadirOzen won by resignation"]

1. e4 {[%clk 0:02:57.8]} 1... g6 {[%clk 0:03:00]} 2. d4 {[%clk 0:02:57.5]} 2...
Bg7 {[%clk 0:03:00.6]} 3. Nc3 {[%clk 0:02:58.1]} 3... d6 {[%clk 0:03:00.9]} 4.
f3 {[%clk 0:02:58]} 4... a6 {[%clk 0:03:00.3]} 5. Be3 {[%clk 0:02:57.4]} 5... b5
{[%clk 0:03:00]} 6. Qd2 {[%clk 0:02:57.7]} 6... Nd7 {[%clk 0:02:59.9]} 7. h4
{[%clk 0:02:57.8]} 7... h6 {[%clk 0:02:59.5]} 8. Nh3 {[%clk 0:02:57.8]} 8... Bb7
{[%clk 0:02:51]} 9. a4 {[%clk 0:02:57.3]} 9... b4 {[%clk 0:02:50.4]} 10. Nd1
{[%clk 0:02:56.1]} 10... a5 {[%clk 0:02:24.6]} 11. c3 {[%clk 0:02:55.9]} 11...
Ngf6 {[%clk 0:01:54.8]} 12. Bc4 {[%clk 0:02:52.5]} 12... d5 {[%clk 0:01:44.2]}
13. exd5 {[%clk 0:02:48.4]} 13... Nxd5 {[%clk 0:01:45.1]} 14. Bxd5 {[%clk
0:02:47.6]} 14... Bxd5 {[%clk 0:01:44.5]} 15. cxb4 {[%clk 0:02:47.7]} 15... axb4
{[%clk 0:01:43.7]} 16. Qxb4 {[%clk 0:02:44.8]} 16... Rb8 {[%clk 0:01:25.8]} 17.
Qa5 {[%clk 0:02:24.8]} 17... e6 {[%clk 0:01:23.4]} 18. Nf4 {[%clk 0:02:24.2]}
18... O-O {[%clk 0:01:21.7]} 19. Nxd5 {[%clk 0:02:21.3]} 19... exd5 {[%clk
0:01:22.6]} 20. Qxd5 {[%clk 0:02:19.7]} 20... c6 {[%clk 0:01:13.7]} 21. Qxc6
{[%clk 0:02:11.1]} 21... Qa5+ {[%clk 0:01:13.8]} 22. Kf2 {[%clk 0:02:06.1]}
22... Nf6 {[%clk 0:01:08.2]} 23. Qc3 {[%clk 0:02:01.2]} 23... Qf5 {[%clk
0:01:06.6]} 24. Re1 {[%clk 0:01:35.2]} 24... Ne4+ {[%clk 0:01:06]} 25. Kg1
{[%clk 0:01:31]} 25... Nxc3 {[%clk 0:01:06.9]} 26. bxc3 {[%clk 0:01:30.3]} 26...
Rfe8 {[%clk 0:01:04.4]} 27. a5 {[%clk 0:01:28.8]} 27... Ra8 {[%clk 0:01:04.2]}
28. a6 {[%clk 0:01:27.9]} 28... Re6 {[%clk 0:01:01.3]} 29. a7 {[%clk 0:01:26.1]}
29... Re7 {[%clk 0:00:58.7]} 30. d5 {[%clk 0:01:26.2]} 30... Qxd5 {[%clk
0:00:58.3]} 31. Bf2 {[%clk 0:01:13.6]} 31... Rxe1+ {[%clk 0:00:56.9]} 32. Bxe1
{[%clk 0:01:13.6]} 32... Rxa7 {[%clk 0:00:55.6]} 33. Rxa7 {[%clk 0:01:12.1]}
33... Qxd1 {[%clk 0:00:55.9]} 0-1

[Event "*** Titled Tuesday Blitz"]
[Site "Chess.com"]
[Date "2021.02.09"]
[Round "1"]
[White "ckgchess"]
[Black "DvaHrasta"]
[Result "1-0"]
[WhiteElo "2737"]
[BlackElo "2391"]
[TimeControl "180+1"]
[EndTime "10:05:26 PST"]
[Termination "ckgchess won on time"]

1. e4 {[%clk 0:03:00.9]} 1... c6 {[%clk 0:02:59.6]} 2. d4 {[%clk 0:02:59.6]}
2... d5 {[%clk 0:02:59.4]} 3. e5 {[%clk 0:02:59.3]} 3... c5 {[%clk 0:02:59.3]}
4. dxc5 {[%clk 0:02:59.8]} 4... e6 {[%clk 0:02:59.4]} 5. a3 {[%clk 0:02:56.6]}
5... Bxc5 {[%clk 0:02:58.8]} 6. Qg4 {[%clk 0:02:56.4]} 6... Ne7 {[%clk
0:02:56.7]} 7. Nf3 {[%clk 0:02:56]} 7... O-O {[%clk 0:02:53.9]} 8. Bd3 {[%clk
0:02:55.7]} 8... f5 {[%clk 0:02:48.5]} 9. Qg3 {[%clk 0:02:53.1]} 9... Nbc6
{[%clk 0:02:44.4]} 10. O-O {[%clk 0:02:48]} 10... a5 {[%clk 0:02:38.2]} 11. h4
{[%clk 0:02:47.6]} 11... b6 {[%clk 0:02:31.7]} 12. h5 {[%clk 0:02:39.8]} 12...
Ba6 {[%clk 0:02:28.4]} 13. Bxa6 {[%clk 0:02:39.6]} 13... Rxa6 {[%clk 0:02:27.3]}
14. h6 {[%clk 0:02:39.6]} 14... g6 {[%clk 0:02:26.2]} 15. Bg5 {[%clk 0:02:38.9]}
15... a4 {[%clk 0:02:17.7]} 16. Nc3 {[%clk 0:02:38.8]} 16... Ra7 {[%clk
0:02:02.3]} 17. Ne2 {[%clk 0:02:32.9]} 17... d4 {[%clk 0:01:58]} 18. Rad1 {[%clk
0:02:27.1]} 18... Rd7 {[%clk 0:01:50.8]} 19. Nf4 {[%clk 0:02:26]} 19... Kf7
{[%clk 0:01:48.8]} 20. Bf6 {[%clk 0:02:19.6]} 20... Qa8 {[%clk 0:01:01]} 21.
Ng5+ {[%clk 0:02:07.2]} 21... Kg8 {[%clk 0:01:00.7]} 22. Ngxe6 {[%clk
0:02:00.7]} 22... Re8 {[%clk 0:00:33]} 23. b4 {[%clk 0:01:48.6]} 23... axb3
{[%clk 0:00:30.7]} 24. Nxc5 {[%clk 0:01:46.8]} 24... bxc5 {[%clk 0:00:27.6]} 25.
Qxb3+ {[%clk 0:01:45.8]} 25... Nd5 {[%clk 0:00:05.2]} 26. Nxd5 {[%clk
0:01:45.8]} 1-0

[Event "*** Titled Tuesday Blitz"]
[Site "Chess.com"]
[Date "2021.02.09"]
[Round "1"]
[White "Grandmaster1369"]
[Black "ErikBlomqvist"]
[Result "0-1"]
[WhiteElo "2191"]
[BlackElo "2517"]
[TimeControl "180+1"]
[EndTime "10:05:30 PST"]
[Termination "ErikBlomqvist won by checkmate"]

1. e4 {[%clk 0:02:57.1]} 1... c6 {[%clk 0:02:54.9]} 2. d4 {[%clk 0:02:56.2]}
2... d5 {[%clk 0:02:55.3]} 3. Nd2 {[%clk 0:02:55.4]} 3... dxe4 {[%clk
0:02:50.1]} 4. Nxe4 {[%clk 0:02:55.9]} 4... Nd7 {[%clk 0:02:50.8]} 5. Bc4 {[%clk
0:02:51.4]} 5... Ngf6 {[%clk 0:02:50.1]} 6. Qf3 {[%clk 0:02:47.4]} 6... e6
{[%clk 0:02:46.3]} 7. Ne2 {[%clk 0:02:44.2]} 7... Nxe4 {[%clk 0:02:44]} 8. Qxe4
{[%clk 0:02:43.5]} 8... Nf6 {[%clk 0:02:43.8]} 9. Qh4 {[%clk 0:02:40.8]} 9...
Be7 {[%clk 0:02:43.1]} 10. Bg5 {[%clk 0:02:37.1]} 10... b5 {[%clk 0:02:34]} 11.
Bd3 {[%clk 0:02:35.7]} 11... Bb7 {[%clk 0:02:22.1]} 12. O-O-O {[%clk 0:02:31.1]}
12... h6 {[%clk 0:02:07.4]} 13. Ng3 {[%clk 0:02:12.8]} 13... Qd5 {[%clk
0:01:59.8]} 14. Bxf6 {[%clk 0:02:03.3]} 14... Bxf6 {[%clk 0:01:56.8]} 15. Qg4
{[%clk 0:02:03.2]} 15... h5 {[%clk 0:01:24.6]} 16. Qe2 {[%clk 0:01:56.7]} 16...
Qxa2 {[%clk 0:01:08.3]} 17. c3 {[%clk 0:01:54.3]} 17... b4 {[%clk 0:00:58.2]}
18. Ne4 {[%clk 0:01:41.3]} 18... bxc3 {[%clk 0:00:40.6]} 19. Nd6+ {[%clk
0:01:24.9]} 19... Ke7 {[%clk 0:00:38.2]} 20. Nxb7 {[%clk 0:01:23.4]} 20... Bg5+
{[%clk 0:00:28.6]} 21. Rd2 {[%clk 0:01:17]} 21... Bxd2+ {[%clk 0:00:20.9]} 22.
Kd1 {[%clk 0:01:16.7]} 22... Qa1+ {[%clk 0:00:20.9]} 23. Kc2 {[%clk 0:01:15.3]}
23... Qxb2+ {[%clk 0:00:21.1]} 24. Kd1 {[%clk 0:01:15.7]} 24... Qc1# {[%clk
0:00:21.4]} 0-1

[Event "*** Titled Tuesday Blitz"]
[Site "Chess.com"]
[Date "2021.02.09"]
[Round "1"]
[White "c_r_e_e_p_e_r"]
[Black "Lukianoo"]
[Result "1-0"]
[WhiteElo "2411"]
[BlackElo "2727"]
[TimeControl "180+1"]
[EndTime "10:05:39 PST"]
[Termination "c_r_e_e_p_e_r won by resignation"]

1. d4 {[%clk 0:02:57.6]} 1... Nf6 {[%clk 0:02:54.2]} 2. c4 {[%clk 0:02:56.7]}
2... e6 {[%clk 0:02:54.2]} 3. Nc3 {[%clk 0:02:56.3]} 3... Bb4 {[%clk 0:02:54.1]}
4. a3 {[%clk 0:02:56.5]} 4... Bxc3+ {[%clk 0:02:53.1]} 5. bxc3 {[%clk
0:02:57.4]} 5... b6 {[%clk 0:02:52.7]} 6. e3 {[%clk 0:02:54.4]} 6... Bb7 {[%clk
0:02:52]} 7. f3 {[%clk 0:02:54.6]} 7... O-O {[%clk 0:02:49.6]} 8. e4 {[%clk
0:02:53.7]} 8... d6 {[%clk 0:02:50.1]} 9. Bd3 {[%clk 0:02:50.2]} 9... e5 {[%clk
0:02:50.4]} 10. Ne2 {[%clk 0:02:49.3]} 10... h6 {[%clk 0:02:49.5]} 11. O-O
{[%clk 0:02:49]} 11... Re8 {[%clk 0:02:49.9]} 12. Ng3 {[%clk 0:02:35.1]} 12...
Nc6 {[%clk 0:02:43.5]} 13. Nf5 {[%clk 0:02:34.4]} 13... Bc8 {[%clk 0:02:43.2]}
14. d5 {[%clk 0:02:18.1]} 14... Bxf5 {[%clk 0:02:40.5]} 15. exf5 {[%clk
0:01:58.6]} 15... Na5 {[%clk 0:02:38.5]} 16. g4 {[%clk 0:01:52.1]} 16... e4
{[%clk 0:02:36.3]} 17. fxe4 {[%clk 0:01:51]} 17... Nxe4 {[%clk 0:02:37.2]} 18.
Qc2 {[%clk 0:01:48.6]} 18... Nc5 {[%clk 0:01:51.7]} 19. f6 {[%clk 0:01:47.7]}
19... Nxd3 {[%clk 0:01:48.9]} 20. Qxd3 {[%clk 0:01:44.3]} 20... Qd7 {[%clk
0:01:48.6]} 21. Kh1 {[%clk 0:01:22]} 21... g5 {[%clk 0:01:37]} 22. Qh3 {[%clk
0:01:11.6]} 1-0

[Event "*** Titled Tuesday Blitz"]
[Site "Chess.com"]
[Date "2021.02.09"]
[Round "1"]
[White "iwanyu"]
[Black "Zmeeed63"]
[Result "1-0"]
[WhiteElo "2817"]
[BlackElo "2412"]
[TimeControl "180+1"]
[EndTime "10:05:41 PST"]
[Termination "iwanyu won by resignation"]

1. d4 {[%clk 0:03:00.9]} 1... d5 {[%clk 0:02:57.5]} 2. Nf3 {[%clk 0:03:01]} 2...
Nf6 {[%clk 0:02:56.2]} 3. c4 {[%clk 0:02:54.5]} 3... e6 {[%clk 0:02:55.1]} 4. e3
{[%clk 0:02:54.7]} 4... c6 {[%clk 0:02:50.3]} 5. Nbd2 {[%clk 0:02:54.2]} 5...
Nbd7 {[%clk 0:02:50.8]} 6. Bd3 {[%clk 0:02:54]} 6... Bd6 {[%clk 0:02:49.8]} 7.
O-O {[%clk 0:02:54.2]} 7... O-O {[%clk 0:02:49.9]} 8. e4 {[%clk 0:02:54.7]} 8...
dxe4 {[%clk 0:02:48.7]} 9. Nxe4 {[%clk 0:02:55.6]} 9... Nxe4 {[%clk 0:02:49]}
10. Bxe4 {[%clk 0:02:56.5]} 10... Nf6 {[%clk 0:02:47.8]} 11. Bc2 {[%clk
0:02:56.2]} 11... c5 {[%clk 0:02:47.5]} 12. Be3 {[%clk 0:02:39.7]} 12... cxd4
{[%clk 0:02:40.3]} 13. Bxd4 {[%clk 0:02:39.5]} 13... Be7 {[%clk 0:02:38.2]} 14.
Qe2 {[%clk 0:02:38.5]} 14... Qc7 {[%clk 0:02:34.9]} 15. Rad1 {[%clk 0:02:31.5]}
15... g6 {[%clk 0:02:17.5]} 16. Qe3 {[%clk 0:02:17.8]} 16... b6 {[%clk
0:02:09.3]} 17. Qh6 {[%clk 0:02:07.6]} 17... Bb7 {[%clk 0:00:52.9]} 18. Ng5
{[%clk 0:02:07.2]} 18... e5 {[%clk 0:00:51.6]} 19. Bc3 {[%clk 0:01:55.2]} 19...
Rad8 {[%clk 0:00:17.5]} 20. Rde1 {[%clk 0:01:35.8]} 20... Bd6 {[%clk 0:00:14.8]}
21. f4 {[%clk 0:01:25.3]} 21... Rfe8 {[%clk 0:00:14.7]} 22. f5 {[%clk
0:01:17.7]} 22... gxf5 {[%clk 0:00:11.3]} 23. Qxf6 {[%clk 0:01:11]} 1-0

[Event "*** Titled Tuesday Blitz"]
[Site "Chess.com"]
[Date "2021.02.09"]
[Round "1"]
[White "GP9isback23"]
[Black "juli2512"]
[Result "1-0"]
[WhiteElo "2517"]
[BlackElo "2187"]
[TimeControl "180+1"]
[EndTime "10:05:41 PST"]
[Termination "GP9isback23 won by resignation"]

1. d4 {[%clk 0:03:00.2]} 1... f5 {[%clk 0:02:57.3]} 2. Nf3 {[%clk 0:02:59.3]}
2... Nf6 {[%clk 0:02:56.5]} 3. g3 {[%clk 0:03:00.2]} 3... g6 {[%clk 0:02:56.4]}
4. Bg2 {[%clk 0:03:01.1]} 4... Bg7 {[%clk 0:02:56.9]} 5. O-O {[%clk 0:03:02]}
5... O-O {[%clk 0:02:57.2]} 6. c4 {[%clk 0:03:02.9]} 6... d6 {[%clk 0:02:57.6]}
7. Nc3 {[%clk 0:03:03.6]} 7... Nc6 {[%clk 0:02:58]} 8. d5 {[%clk 0:02:54.4]}
8... Na5 {[%clk 0:02:57.9]} 9. Qd3 {[%clk 0:02:36.6]} 9... c5 {[%clk 0:02:56.8]}
10. Bg5 {[%clk 0:02:30.9]} 10... Bd7 {[%clk 0:02:54.3]} 11. Rfe1 {[%clk
0:02:19.5]} 11... e5 {[%clk 0:02:36.5]} 12. dxe6 {[%clk 0:02:15.5]} 12... Bxe6
{[%clk 0:02:36.7]} 13. b3 {[%clk 0:02:15.5]} 13... Qd7 {[%clk 0:02:14.9]} 14.
Rad1 {[%clk 0:02:14.1]} 14... Rad8 {[%clk 0:02:13.3]} 15. Bxf6 {[%clk 0:02:09]}
15... Bxf6 {[%clk 0:02:12.7]} 16. Nd5 {[%clk 0:02:09.2]} 16... Bg7 {[%clk
0:02:08.1]} 17. Ng5 {[%clk 0:02:06.5]} 17... Nc6 {[%clk 0:02:02.3]} 18. Nf4
{[%clk 0:02:01.6]} 18... Ne5 {[%clk 0:01:54.6]} 19. Qc2 {[%clk 0:01:59.2]} 19...
Bf7 {[%clk 0:01:51.2]} 20. Nxf7 {[%clk 0:01:54.7]} 20... Nxf7 {[%clk 0:01:50.3]}
21. Bd5 {[%clk 0:01:54.8]} 21... Kh8 {[%clk 0:01:46.3]} 22. Ne6 {[%clk
0:01:53.2]} 22... f4 {[%clk 0:01:40.9]} 23. Nxf8 {[%clk 0:01:48]} 23... Rxf8
{[%clk 0:01:40.2]} 24. Bxf7 {[%clk 0:01:38.1]} 24... Rxf7 {[%clk 0:01:39]} 25.
Qe4 {[%clk 0:01:37.8]} 25... Be5 {[%clk 0:01:34.6]} 26. Rd3 {[%clk 0:01:30.3]}
26... Qe7 {[%clk 0:01:30.9]} 27. Qg2 {[%clk 0:01:23.4]} 27... Kg7 {[%clk
0:01:26.2]} 28. Red1 {[%clk 0:01:22.7]} 28... Qf6 {[%clk 0:01:24.2]} 29. Rf3
{[%clk 0:01:21]} 29... g5 {[%clk 0:01:21.9]} 30. Rfd3 {[%clk 0:01:15.5]} 30...
h5 {[%clk 0:01:19.6]} 31. gxf4 {[%clk 0:01:10.8]} 31... Bxf4 {[%clk 0:01:13.8]}
32. e3 {[%clk 0:00:58.3]} 32... Be5 {[%clk 0:01:10.5]} 33. f4 {[%clk 0:00:58.3]}
33... Bb2 {[%clk 0:00:54.6]} 34. Rxd6 {[%clk 0:00:52.3]} 1-0

[Event "*** Titled Tuesday Blitz"]
[Site "Chess.com"]
[Date "2021.02.09"]
[Round "1"]
[White "LamaChampetre"]
[Black "PrinceMurad09"]
[Result "0-1"]
[WhiteElo "2228"]
[BlackElo "2546"]
[TimeControl "180+1"]
[EndTime "10:05:42 PST"]
[Termination "PrinceMurad09 won on time"]

1. d4 {[%clk 0:03:00.5]} 1... Nf6 {[%clk 0:02:59.9]} 2. c4 {[%clk 0:02:57]} 2...
c5 {[%clk 0:02:59.9]} 3. d5 {[%clk 0:02:56.8]} 3... b5 {[%clk 0:02:59.8]} 4.
cxb5 {[%clk 0:02:57.7]} 4... a6 {[%clk 0:03:00.1]} 5. bxa6 {[%clk 0:02:58.6]}
5... g6 {[%clk 0:03:00.6]} 6. Nc3 {[%clk 0:02:58.8]} 6... Bg7 {[%clk 0:03:01.1]}
7. e4 {[%clk 0:02:58.2]} 7... Qa5 {[%clk 0:03:01.2]} 8. Bd2 {[%clk 0:02:54.4]}
8... Bxa6 {[%clk 0:02:59]} 9. e5 {[%clk 0:02:30.9]} 9... Ng8 {[%clk 0:02:28.3]}
10. Nf3 {[%clk 0:02:05.3]} 10... Nh6 {[%clk 0:02:26]} 11. d6 {[%clk 0:02:02.4]}
11... Bxf1 {[%clk 0:02:13.6]} 12. Kxf1 {[%clk 0:01:46.2]} 12... Qa6+ {[%clk
0:02:12.3]} 13. Kg1 {[%clk 0:01:42.2]} 13... exd6 {[%clk 0:02:08.7]} 14. exd6
{[%clk 0:01:29.3]} 14... O-O {[%clk 0:02:08.2]} 15. Bf4 {[%clk 0:01:12]} 15...
Nc6 {[%clk 0:02:08.1]} 16. g3 {[%clk 0:01:10.6]} 16... Nf5 {[%clk 0:02:05.7]}
17. Kg2 {[%clk 0:01:09.6]} 17... Rab8 {[%clk 0:02:05.2]} 18. Rb1 {[%clk
0:01:05.3]} 18... Ncd4 {[%clk 0:02:04.3]} 19. Nd5 {[%clk 0:01:01.9]} 19... Qxa2
{[%clk 0:01:57.6]} 20. Ne7+ {[%clk 0:00:57.8]} 20... Kh8 {[%clk 0:01:57.1]} 21.
Nxd4 {[%clk 0:00:46.6]} 21... Nxd4 {[%clk 0:01:52.2]} 22. Be3 {[%clk 0:00:42.1]}
22... Rxb2 {[%clk 0:01:40]} 23. Qd3 {[%clk 0:00:14.7]} 23... Qa8+ {[%clk
0:01:37.9]} 24. Kh3 {[%clk 0:00:10.5]} 24... Qf3 {[%clk 0:01:36.9]} 25. Rxb2
{[%clk 0:00:07.8]} 25... Qxh1 {[%clk 0:01:35.7]} 26. Bg5 {[%clk 0:00:03]} 26...
Qf3 {[%clk 0:01:27.3]} 27. Qxf3 {[%clk 0:00:01.5]} 27... Nxf3 {[%clk 0:01:28.2]}
0-1